bitfinex-derivatives/quotes_BTCF0:USTF0_20241116
["timestamp","ask_amount","ask_price","bid_price","bid_amount"]
[1731788331207,0.054906,91013.0,91012.0,0.14206536]
[1731788334122,0.054906,91013.0,91012.0,0.14632536]
[1731788334306,0.18576235,91013.0,91012.0,0.14632536]
[1731788334506,0.054906,91013.0,91012.0,0.14632536]
[1731788335514,0.14869614,91013.0,91012.0,0.15662632]
[1731788338822,0.11652629,91013.0,91012.0,0.15662632]
[1731788340317,0.28060068,91013.0,91012.0,0.15662632]
[1731788341416,0.16993209,91013.0,91012.0,0.15662632]
[1731788342221,0.16993209,91013.0,91012.0,0.16005998]
[1731788342421,0.10831144,91013.0,91012.0,0.16005998]
[1731788343134,0.054906,91013.0,91012.0,0.16005998]
[1731788343314,0.10831022,91013.0,91012.0,0.16005998]
[1731788344027,0.16993051,91013.0,91012.0,0.16005998]
[1731788344727,0.35998442,91013.0,91012.0,0.16005998]
[1731788345127,0.1630297,91013.0,91012.0,0.16005998]
[1731788345333,0.31115021,91013.0,91012.0,0.16005998]
[1731788345532,0.11652629,91013.0,91012.0,0.16005998]
[1731788345740,0.11652629,91013.0,91012.0,0.17036092]
[1731788346029,0.11652629,91013.0,91012.0,0.16005997]
[1731788346415,0.31394896,91013.0,91012.0,0.16005997]
[1731788346629,0.11652629,91013.0,91012.0,0.16005997]
[1731788346819,0.17814658,91013.0,91012.0,0.16005997]
[1731788347125,0.054913,91002.0,91001.0,0.00164785]
[1731788347330,0.47733329,91002.0,91001.0,0.00164785]
[1731788347529,0.415713,91002.0,91001.0,0.00164785]
[1731788348430,0.66918161,91002.0,91001.0,0.00164785]
[1731788348929,0.70151157,91002.0,91001.0,0.00164785]
[1731788349131,0.50966325,91002.0,91001.0,0.05662558]
[1731788349336,1.06144625,91002.0,91001.0,0.05497773]
[1731788349520,0.054928,90978.0,90977.0,0.0051]
[1731788349720,0.05493,90974.0,90973.0,0.0309]
[1731788350130,0.18618867,90974.0,90973.0,0.0309]
[1731788350436,0.18618867,90974.0,90954.0,0.054942]
[1731788350437,0.054931,90972.0,90954.0,0.054942]
[1731788350732,0.44084,90974.0,90945.0,0.3608]
[1731788350733,0.054941,90957.0,90955.0,0.086041]
[1731788350943,0.0051,90961.0,90955.0,0.0311]
[1731788351153,0.0051,90961.0,90960.0,0.054938]
[1731788351452,0.0051,90961.0,90960.0,0.05497773]
[1731788351658,0.060038,90961.0,90960.0,0.16491556]
[1731788351863,0.0051,90961.0,90960.0,0.16491556]
[1731788355770,0.0051,90961.0,90960.0,0.49471556]
[1731788356155,0.054932,90971.0,90966.0,0.054935]
[1731788356358,0.054932,90971.0,90967.0,0.086334]
[1731788356563,0.054932,90971.0,90967.0,0.14131173]
[1731788356765,0.054932,90971.0,90968.0,0.10992816]
[1731788356944,0.09395025,90976.0,90968.0,0.16490589]
[1731788357149,0.054933,90970.0,90969.0,0.01030543]
[1731788357358,0.054933,90970.0,90969.0,0.06528316]
[1731788357949,0.054933,90970.0,90969.0,0.17521011]
[1731788359031,0.054933,90970.0,90969.0,0.17864541]
[1731788360951,0.14888325,90970.0,90969.0,0.06871846]
[1731788361258,0.14888325,90970.0,90948.0,0.0314]
[1731788361259,0.054942,90954.0,90948.0,0.0314]
[1731788361458,0.054942,90954.0,90947.0,0.054946]
[1731788361956,0.054942,90954.0,90953.0,0.47072695]
[1731788362658,0.054942,90954.0,90953.0,0.52513885]
[1731788363362,0.054942,90954.0,90953.0,0.58011658]
[1731788366251,0.054942,90954.0,90953.0,0.16490468]
[1731788367362,0.054942,90954.0,90953.0,0.170402]
[1731788369150,0.054942,90954.0,90953.0,0.17040228]
[1731788369353,0.054942,90954.0,90953.0,0.16490468]
[1731788370561,0.054942,90954.0,90953.0,0.05497773]
[1731788370562,0.22897225,90954.0,90953.0,0.05497773]
[1731788371859,0.20511365,90954.0,90953.0,0.05497773]
[1731788372060,0.28519365,90954.0,90953.0,0.05497773]
[1731788372961,0.20511365,90954.0,90953.0,0.05497773]
[1731788373261,0.22913225,90954.0,90953.0,0.05841398]
[1731788373759,0.14889225,90954.0,90953.0,0.05841398]
[1731788373967,0.22913225,90954.0,90953.0,0.05841398]
[1731788376456,0.22913225,90954.0,90953.0,0.05497773]
[1731788377263,0.36038701,90954.0,90953.0,0.05497773]
[1731788377566,0.22913225,90954.0,90953.0,0.05497773]
[1731788382562,0.22913225,90954.0,90953.0,0.05841393]
[1731788383563,0.05628187,90955.0,90953.0,0.05841393]
[1731788383861,0.00068,90957.0,90956.0,0.054941]
[1731788384062,0.0051,90959.0,90958.0,0.05494]
[1731788384270,0.08024,90963.0,90962.0,0.054937]
[1731788384462,0.08024,90963.0,90962.0,0.12022281]
[1731788384768,0.0051,90964.0,90963.0,0.054937]
[1731788384979,0.13110204,90965.0,90964.0,0.054936]
[1731788385175,0.21134204,90965.0,90964.0,0.10991373]
[1731788385469,0.26627704,90965.0,90964.0,0.10991373]
[1731788386173,0.135175,90965.0,90964.0,0.10991373]
[1731788386472,0.18607499,90965.0,90964.0,0.10991373]
[1731788386674,0.135175,90965.0,90964.0,0.10991373]
[1731788387769,0.26631499,90965.0,90964.0,0.10991373]
[1731788388362,0.18607499,90965.0,90964.0,0.10991373]
[1731788388772,0.26631499,90965.0,90964.0,0.10991373]
[1731788389072,0.26631499,90965.0,90964.0,0.12022036]
[1731788389073,0.135175,90965.0,90964.0,0.12022036]
[1731788390179,0.18607499,90965.0,90964.0,0.12022036]
[1731788390390,0.135175,90965.0,90964.0,0.12022036]
[1731788390675,0.49254,90966.0,90965.0,0.054935]
[1731788390676,0.36140001,90966.0,90965.0,0.054935]
[1731788390882,0.08024,90967.0,90965.0,0.06528436]
[1731788391078,0.08024,90967.0,90966.0,0.06524163]
[1731788391280,0.00518666,90969.0,90968.0,0.054934]
[1731788391577,0.00518666,90969.0,90968.0,0.12365352]
[1731788391578,8.666e-05,90969.0,90968.0,0.12365352]
[1731788391977,8.666e-05,90969.0,90968.0,0.1236535]
[1731788392167,0.05501966,90969.0,90968.0,0.1236535]
[1731788392668,0.05501966,90969.0,90968.0,0.12021836]
[1731788393567,8.666e-05,90969.0,90968.0,0.12365351]
[1731788393968,8.666e-05,90969.0,90968.0,0.12365348]
[1731788395379,8.666e-05,90969.0,90968.0,0.23358164]
[1731788395676,8.666e-05,90969.0,90968.0,0.23358162]
[1731788396180,0.135169,90976.0,90971.0,0.054932]
[1731788396372,0.08024,90976.0,90975.0,0.054929]
[1731788396682,0.08024,90976.0,90975.0,0.12364846]
[1731788397185,0.08024,90976.0,90975.0,0.12373512]
[1731788397975,0.08024,90979.0,90978.0,0.054927]
[1731788398166,0.08024,90979.0,90978.0,0.12364646]
[1731788398678,0.13383217,90979.0,90978.0,0.12364646]
[1731788398874,0.19549218,90979.0,90978.0,0.12364646]
[1731788400789,0.36091389,90984.0,90978.0,0.06871946]
[1731788400984,0.36091389,90984.0,90983.0,0.054925]
[1731788401187,0.36091389,90984.0,90983.0,0.0583601]
[1731788401485,0.00011389,90984.0,90983.0,0.0583601]
[1731788401686,0.00011389,90984.0,90983.0,0.17857938]
[1731788402195,0.00011389,90984.0,90983.0,0.17857926]
[1731788403478,0.00011389,90984.0,90983.0,0.56336827]
[1731788403789,0.00164998,90997.0,90996.0,0.054917]
[1731788403981,0.00164998,90997.0,90996.0,0.06865519]
[1731788404389,0.00164998,90997.0,90996.0,0.23354295]
[1731788405277,0.00164998,90997.0,90996.0,0.23010846]
[1731788405481,0.00164998,90997.0,90996.0,0.23354232]
[1731788406083,8.462e-05,91011.0,90996.0,0.17862532]
[1731788406084,0.09389047,91005.0,90996.0,0.17862532]
[1731788406284,0.054929,90976.0,90975.0,8.666e-05]
[1731788406593,0.495369,90976.0,90975.0,0.00558289]
[1731788407690,0.44044,90976.0,90960.0,0.3608]
[1731788407889,0.054938,90961.0,90960.0,0.3608]
[1731788408494,0.054938,90961.0,90960.0,0.41577773]
[1731788408682,0.054938,90961.0,90960.0,0.41586035]
[1731788409688,0.054938,90961.0,90960.0,0.42135709]
[1731788411378,0.054938,90961.0,90960.0,0.53129492]
[1731788412493,0.054938,90961.0,90960.0,0.53129493]
[1731788415786,0.054938,90961.0,90960.0,0.52579818]
[1731788415986,0.054938,90961.0,90960.0,0.5312949]
[1731788416194,0.07964,90971.0,90960.0,0.54160106]
[1731788416386,0.054938,90961.0,90960.0,0.52579818]
[1731788416587,0.054938,90961.0,90960.0,0.5416012]
[1731788416802,0.054938,90961.0,90960.0,0.1808012]
[1731788417385,0.054938,90961.0,90960.0,0.17049488]
[1731788417703,0.054938,90961.0,90960.0,0.18080228]
[1731788417998,0.054938,90961.0,90960.0,0.16499818]
[1731788418199,0.464378,90961.0,90960.0,0.0584962]
[1731788418496,0.464378,90961.0,90951.0,0.0051]
[1731788418497,0.054943,90952.0,90951.0,0.0051]
[1731788418682,0.054949,90943.0,90942.0,0.3659]
[1731788418885,0.054949,90943.0,90942.0,0.01030795]
[1731788419495,0.054949,90943.0,90942.0,0.01037184]
[1731788420590,0.054949,90943.0,90942.0,0.06534957]
[1731788422203,0.05490063,90943.0,90942.0,0.17530915]
[1731788424590,0.45469047,90952.0,90942.0,0.17530915]
[1731788424799,0.054945,90949.0,90943.0,0.06525695]
[1731788425001,0.054945,90949.0,90944.0,0.06525595]
[1731788425195,0.054945,90949.0,90947.0,0.3608]
[1731788425391,0.054945,90949.0,90948.0,0.01030795]
[1731788425593,0.054945,90949.0,90948.0,0.06528568]
[1731788425795,0.054942,90954.0,90948.0,0.06528568]
[1731788426102,0.054943,90953.0,90949.0,0.01030795]
[1731788426304,0.054943,90953.0,90949.0,0.06528568]
[1731788426501,0.054944,90951.0,90950.0,0.01030795]
[1731788426802,0.054944,90951.0,90950.0,0.17523801]
[1731788427001,0.054944,90951.0,90950.0,0.06528568]
[1731788427207,0.054944,90951.0,90950.0,0.05497773]
[1731788435409,0.36144,90964.0,90957.0,0.05494]
[1731788435611,0.054939,90959.0,90958.0,0.0637]
[1731788435796,0.054939,90959.0,90958.0,0.12898528]
[1731788436001,0.054939,90959.0,90958.0,0.24235892]
[1731788436607,0.17461047,90970.0,90958.0,0.24235892]
[1731788436808,0.3608,90972.0,90959.0,0.01374336]
[1731788437008,0.3608,90972.0,90960.0,0.01374296]
[1731788437203,0.3608,90972.0,90961.0,0.01374296]
[1731788437507,0.3608,90972.0,90962.0,0.01374296]
[1731788437708,0.3608,90972.0,90963.0,0.01374296]
[1731788437914,0.054933,90970.0,90966.0,0.054934]
[1731788438107,0.054933,90969.0,90967.0,0.01374296]
[1731788438307,0.054933,90969.0,90968.0,0.01374296]
[1731788438510,0.054933,90969.0,90968.0,0.06872069]
[1731788438710,0.054933,90969.0,90968.0,0.17865126]
[1731788438908,0.054933,90969.0,90968.0,0.17521585]
[1731788441031,0.054933,90969.0,90968.0,0.17865111]
[1731788441314,0.00164911,90980.0,90973.0,0.05493]
[1731788441315,0.05493,90974.0,90973.0,0.05493]
[1731788441515,0.05493,90974.0,90973.0,0.12365054]
[1731788442020,0.05493,90974.0,90973.0,0.2301374]
[1731788442513,0.05493,90974.0,90973.0,0.1752074]
[1731788450327,0.00164911,90980.0,90973.0,0.52569985]
[1731788450622,0.00164911,90980.0,90979.0,0.054927]
[1731788450920,0.00164911,90980.0,90979.0,0.11333949]
[1731788451222,0.00164911,90980.0,90979.0,0.23356228]
[1731788452715,0.00164911,90980.0,90979.0,0.22325798]
[1731788454218,0.00164911,90980.0,90979.0,0.22325799]
[1731788456628,0.00164911,90980.0,90979.0,0.27831253]
[1731788458228,0.00164911,90980.0,90979.0,0.28861648]
[1731788458431,0.00164911,90980.0,90979.0,0.38250695]
[1731788459221,0.05492,90991.0,90986.0,0.054923]
[1731788459435,0.05492,90991.0,90987.0,0.01373872]
[1731788459725,0.05492,90991.0,90988.0,0.00343477]
[1731788459925,0.05492,90991.0,90989.0,0.01373872]
[1731788460126,0.05492,90991.0,90990.0,0.01373872]
[1731788460324,0.0304,90993.0,90991.0,0.05492]
[1731788460521,0.054917,90995.0,90992.0,0.01373872]
[1731788461027,0.054917,90995.0,90993.0,0.12363626]
[1731788461228,0.13070224,91002.0,91000.0,0.054914]
[1731788461423,0.05491,91007.0,91001.0,0.1625406]
[1731788461624,0.05491,91007.0,91002.0,0.04663713]
[1731788461827,0.05491,91007.0,91003.0,0.06864913]
[1731788462129,0.054907,91012.0,91004.0,0.01373713]
[1731788462327,0.054907,91012.0,91007.0,0.05491]
[1731788462522,0.0321,91020.0,91010.0,0.054908]
[1731788462729,0.0321,91020.0,91010.0,0.06864513]
[1731788463120,0.0321,91020.0,91010.0,0.17852256]
[1731788463326,0.054904,91017.0,91010.0,0.17852256]
[1731788463720,0.054904,91017.0,91010.0,0.18308256]
[1731788464434,0.054904,91017.0,91010.0,0.1796482]
[1731788464622,0.054904,91017.0,91010.0,0.18308158]
[1731788464821,0.054904,91017.0,91010.0,0.1796482]
[1731788465328,0.054904,91017.0,91010.0,0.18308158]
[1731788465531,0.0321,91020.0,91010.0,0.23763357]
[1731788466318,0.087003,91020.0,91010.0,0.23763357]
[1731788468333,0.087003,91020.0,91010.0,0.23420019]
[1731788468738,0.087003,91020.0,91010.0,0.23763354]
[1731788469237,0.054907,91012.0,91010.0,0.00799335]
[1731788469530,0.054907,91012.0,90991.0,0.05492]
[1731788469531,0.054914,91001.0,90991.0,0.05492]
[1731788469733,0.054914,91001.0,90990.0,6.389e-05]
[1731788469734,0.054914,91001.0,91000.0,0.0103021]
[1731788470235,0.054914,91001.0,90990.0,6.389e-05]
[1731788470237,0.05492,90991.0,90990.0,6.389e-05]
[1731788470532,0.05492,90991.0,90990.0,0.01036694]
[1731788470839,0.3608,90999.0,90990.0,0.2301856]
[1731788471030,0.054917,90996.0,90991.0,0.01030305]
[1731788471232,0.054917,90996.0,90993.0,0.054918]
[1731788471440,0.054917,90996.0,90994.0,0.01030305]
[1731788471626,0.054917,90996.0,90995.0,0.01030305]
[1731788471933,0.054917,90996.0,90995.0,0.06531221]
[1731788472341,0.3608,90999.0,90995.0,0.23012535]
[1731788472535,0.3608,90999.0,90996.0,0.01030305]
[1731788472737,0.0324,91000.0,90997.0,0.01030305]
[1731788472929,0.0324,91000.0,90998.0,0.01030305]
[1731788473238,0.0324,91000.0,90999.0,0.01030305]
[1731788473535,0.054913,91002.0,90999.0,0.05500916]
[1731788473843,0.054913,91002.0,90999.0,0.16490228]
[1731788474137,0.08,91004.0,90999.0,0.16490228]
[1731788474327,0.054914,91001.0,90999.0,0.16490228]
[1731788475239,0.054914,91001.0,91000.0,0.01030188]
[1731788475442,0.054914,91001.0,91000.0,0.06531104]
[1731788475826,0.054914,91001.0,91000.0,0.17520114]
[1731788480836,0.05491,91007.0,91001.0,0.054914]
[1731788481028,0.05491,91007.0,91002.0,0.01030188]
[1731788481233,0.05491,91007.0,91003.0,0.01030188]
[1731788481550,0.05491,91007.0,91004.0,0.01373572]
[1731788481742,0.3608,91008.0,91005.0,0.10762619]
[1731788481951,8.462e-05,91011.0,91009.0,0.054908]
[1731788482129,8.462e-05,91011.0,91010.0,0.42944372]
[1731788482651,8.462e-05,91011.0,91010.0,0.53589334]
[1731788482944,8.462e-05,91011.0,91010.0,0.5909025]
[1731788483130,8.462e-05,91011.0,91010.0,0.59433596]
[1731788484545,8.462e-05,91011.0,91010.0,0.17862796]
[1731788485238,8.462e-05,91011.0,91010.0,0.23353596]
[1731788488143,8.462e-05,91011.0,91010.0,0.2335359]
[1731788488459,8.462e-05,91011.0,91010.0,0.17862801]
[1731788488460,0.05499262,91011.0,91010.0,0.17862801]
[1731788489835,0.05499262,91011.0,91010.0,0.1751945]
[1731788492542,0.74543262,91011.0,91010.0,0.05500916]
[1731788492734,0.74543262,91011.0,91010.0,0.00510916]
[1731788493136,0.41579262,91011.0,91010.0,0.00510916]
[1731788493332,0.74543262,91011.0,91010.0,0.00510916]
[1731788494635,0.054916,90998.0,90990.0,0.03296389]
[1731788494835,0.054919,90992.0,90990.0,0.03296389]
[1731788495052,0.054919,90992.0,90991.0,0.0103028]
[1731788495247,0.054919,90992.0,90991.0,0.12019592]
[1731788495947,0.054919,90992.0,90991.0,0.17520508]
[1731788496540,0.054919,90992.0,90991.0,0.06531196]
[1731788497442,0.054919,90992.0,90991.0,0.05500916]
[1731788497850,0.054919,90992.0,90991.0,0.06531305]
[1731788498849,0.054919,90992.0,90991.0,0.05500916]
[1731788499044,0.384639,90992.0,90991.0,0.05500916]
[1731788500460,0.51549606,90992.0,90991.0,0.05500916]
[1731788500745,0.384639,90992.0,90991.0,0.05500916]
[1731788502449,0.384639,90992.0,90974.0,0.0301]
[1731788502450,0.054927,90979.0,90974.0,0.0301]
[1731788502655,0.054927,90979.0,90978.0,0.01030483]
[1731788503153,0.054927,90979.0,90978.0,0.10991607]
[1731788503453,0.054929,90975.0,90974.0,0.0301]
[1731788503642,0.054929,90975.0,90974.0,0.04040562]
[1731788504151,0.054929,90975.0,90974.0,0.09541478]
[1731788505574,0.054929,90975.0,90974.0,0.08510916]
[1731788507351,0.054929,90975.0,90974.0,0.09541463]
[1731788507547,0.054929,90975.0,90974.0,0.08510916]
[1731788508157,0.054929,90975.0,90974.0,0.09541463]
[1731788511853,0.054929,90975.0,90974.0,0.08510916]
[1731788512857,0.054929,90975.0,90974.0,0.09541438]
[1731788515877,0.054928,90977.0,90974.0,0.20533529]
[1731788516060,0.3608,90981.0,90975.0,0.01030522]
[1731788516061,0.054929,90976.0,90975.0,0.01030522]
[1731788516372,0.054929,90976.0,90975.0,0.06531438]
[1731788516874,0.054929,90976.0,90975.0,0.17523529]
[1731788517871,0.08016,90991.0,90978.0,0.054927]
[1731788518079,0.054926,90980.0,90979.0,0.04190522]
[1731788518373,0.054926,90980.0,90979.0,0.09691438]
[1731788518559,0.054926,90980.0,90979.0,0.20683408]
[1731788518764,0.054926,90980.0,90979.0,0.17523408]
[1731788519157,0.054926,90980.0,90979.0,0.16492886]
[1731788522361,0.054926,90980.0,90979.0,0.17523384]
[1731788526471,0.09389047,90985.0,90979.0,0.17523384]
[1731788526674,0.09389047,90985.0,90980.0,0.01030507]
[1731788526872,0.09389047,90985.0,90979.0,0.16492886]
[1731788526873,0.054926,90980.0,90979.0,0.1099197]
[1731788527074,0.054926,90980.0,90979.0,0.01030478]
[1731788528070,0.054926,90980.0,90979.0,0.06531394]
[1731788528874,0.11658894,90980.0,90979.0,0.05500916]
[1731788532289,0.054926,90982.0,90979.0,0.21985103]
[1731788532588,0.054926,90980.0,90979.0,0.16492403]
[1731788532785,0.11658894,90980.0,90979.0,0.16492403]
[1731788533177,0.11658894,90980.0,90979.0,0.05500916]
[1731788533486,0.25033837,90980.0,90979.0,0.05500916]
[1731788533688,0.25033837,90980.0,90958.0,0.0314]
[1731788533689,0.054932,90971.0,90958.0,0.0314]
[1731788533894,0.054936,90964.0,90961.0,0.0051]
[1731788534189,0.054936,90964.0,90958.0,0.0314]
[1731788534387,0.06166294,90966.0,90961.0,0.32939194]
[1731788534587,0.054935,90965.0,90958.0,0.41621846]
[1731788534788,0.054939,90960.0,90958.0,0.36079194]
[1731788535092,0.054939,90960.0,90959.0,0.10992574]
[1731788535491,0.054939,90960.0,90959.0,0.1649349]
[1731788535786,0.054939,90960.0,90959.0,0.17524144]
[1731788536488,0.06166294,90966.0,90959.0,0.17524144]
[1731788536794,0.06166294,90966.0,90959.0,0.1649349]
[1731788536986,0.054938,90960.0,90959.0,0.1649349]
[1731788539994,0.054936,90965.0,90960.0,0.054938]
[1731788540183,0.054934,90967.0,90962.0,0.054937]
[1731788540386,0.36144,90975.0,90964.0,0.054936]
[1731788540592,0.054933,90969.0,90965.0,0.054935]
[1731788540782,0.06166294,90974.0,90965.0,0.054935]
[1731788540783,0.054934,90968.0,90965.0,0.10994416]
[1731788541296,0.054934,90968.0,90966.0,0.10993057]
[1731788541494,0.054934,90968.0,90966.0,0.16493973]
[1731788541894,0.054931,90973.0,90966.0,0.21987473]
[1731788542086,0.054933,90969.0,90966.0,0.21987473]
[1731788542482,0.06166294,90974.0,90971.0,0.054931]
[1731788542793,0.06166294,90974.0,90971.0,0.10994016]
[1731788542992,0.06166294,90974.0,90972.0,0.0304]
[1731788543193,0.054931,90973.0,90972.0,0.08540916]
[1731788545400,0.05592594,90981.0,90972.0,0.08540916]
[1731788545702,0.00164918,90983.0,90972.0,0.08540916]
[1731788545703,0.054929,90977.0,90973.0,0.05493]
[1731788545899,0.054929,90977.0,90973.0,0.14113916]
[1731788546403,0.054929,90977.0,90974.0,0.1099203]
[1731788546704,0.06166294,90980.0,90974.0,0.4943214]
[1731788547003,0.054929,90975.0,90974.0,0.4943214]
[1731788547392,0.06166294,90980.0,90974.0,0.4943214]
[1731788547393,0.054929,90976.0,90974.0,0.21985946]
[1731788548191,0.054929,90976.0,90975.0,0.054929]
[1731788548408,0.054926,90981.0,90978.0,0.054928]
[1731788548611,0.054926,90981.0,90978.0,0.47073716]
[1731788548907,0.054926,90980.0,90979.0,0.1099203]
[1731788549103,0.054926,90980.0,90979.0,0.05500916]
[1731788549494,0.087626,90980.0,90979.0,0.05500916]
[1731788549908,0.14928894,90980.0,90979.0,0.05500916]
[1731788550799,0.18160868,90980.0,90979.0,0.05500916]
[1731788552312,0.23667076,90980.0,90979.0,0.05500916]
[1731788552504,0.23667076,90980.0,90967.0,0.054934]
[1731788552691,0.054934,90968.0,90967.0,0.054934]
[1731788552895,0.054934,90967.0,90966.0,0.32939194]
[1731788553196,0.054934,90967.0,90963.0,0.0536553]
[1731788553197,0.054936,90964.0,90963.0,0.0536553]
[1731788553393,0.08012,90976.0,90966.0,0.10992937]
[1731788553597,0.08012,90976.0,90966.0,0.43902193]
[1731788553793,0.08012,90976.0,90967.0,0.32909256]
[1731788553998,0.09398268,90973.0,90965.0,0.32909256]
[1731788554311,0.054934,90967.0,90966.0,0.32909256]
[1731788554512,0.09398268,90973.0,90966.0,0.05500916]
[1731788554711,0.054934,90967.0,90966.0,0.38410172]
[1731788555110,0.054934,90967.0,90966.0,0.05500916]
[1731788555318,0.054934,90967.0,90966.0,0.16493973]
[1731788564317,0.054934,90967.0,90966.0,0.05500916]
[1731788565208,0.1106937,90967.0,90966.0,0.05500916]
[1731788565408,0.054934,90967.0,90966.0,0.05500916]
[1731788566616,0.415734,90967.0,90966.0,0.05500916]
[1731788567217,0.47144941,90967.0,90966.0,0.05500916]
[1731788570547,0.63567763,90967.0,90966.0,0.05500916]
[1731788570828,0.63567763,90967.0,90952.0,0.0051]
[1731788570829,0.054938,90962.0,90952.0,0.0051]
[1731788571011,0.054946,90947.0,90946.0,1e-06]
[1731788571213,0.58984868,90947.0,90946.0,1e-06]
[1731788572519,0.58984868,90947.0,90946.0,0.000181]
[1731788574925,0.55758399,90947.0,90946.0,0.000181]
[1731788577720,0.61303745,90947.0,90946.0,0.000181]
[1731788579523,0.054955,90932.0,90931.0,0.0314]
[1731788579722,0.11667299,90932.0,90931.0,0.0314]
[1731788580125,0.11667299,90932.0,90931.0,0.14135475]
[1731788581528,0.11667299,90932.0,90931.0,0.19636512]
[1731788581826,0.11667299,90932.0,90931.0,0.08641037]
[1731788582714,0.054955,90932.0,90931.0,0.08641037]
[1731788582914,0.14903085,90932.0,90931.0,0.08641037]
[1731788585428,0.054955,90932.0,90931.0,0.08641037]
[1731788587440,0.054955,90932.0,90907.0,0.36136]
[1731788587441,0.32992,90932.0,90903.0,0.32932297]
[1731788587627,0.14904485,90910.0,90901.0,0.07696513]
[1731788587934,0.14904485,90910.0,90909.0,0.05662242]
[1731788588149,0.14904485,90910.0,90909.0,0.16659531]
[1731788588527,0.14904485,90910.0,90909.0,0.00164986]
[1731788589327,0.054974,90902.0,90901.0,0.0627]
[1731788589632,0.14904985,90902.0,90901.0,0.0627]
[1731788590028,0.14904985,90902.0,90901.0,0.1726995]
[1731788590435,0.14904985,90902.0,90901.0,0.22770987]
[1731788590636,0.14904985,90902.0,90901.0,0.11771037]
[1731788591439,0.054974,90902.0,90901.0,0.11771037]
[1731788594332,0.3608,90911.0,90903.0,0.054973]
[1731788594333,0.05497,90909.0,90903.0,0.054973]
[1731788594529,0.08028,90914.0,90903.0,0.05501037]
[1731788594729,0.05497,90908.0,90904.0,0.054972]
[1731788594929,0.054971,90906.0,90904.0,0.16501955]
[1731788597735,0.08028,90915.0,90904.0,0.16501955]
[1731788597930,0.054969,90910.0,90905.0,0.054972]
[1731788598238,0.054969,90910.0,90906.0,0.087471]
[1731788598440,0.3608,90920.0,90906.0,0.18158622]
[1731788598624,0.054967,90914.0,90911.0,0.054968]
[1731788598828,0.054967,90914.0,90911.0,0.10997837]
[1731788599225,0.054967,90914.0,90912.0,0.11000192]
[1731788599436,0.054967,90914.0,90912.0,0.16501229]
[1731788602742,0.054967,90914.0,90912.0,0.21997929]
[1731788602949,0.0016505,90921.0,90913.0,0.09407585]
[1731788603240,0.0051,90927.0,90926.0,0.054959]
[1731788603438,0.054957,90929.0,90926.0,0.054959]
[1731788603628,0.0051,90938.0,90921.0,0.0303]
[1731788603629,0.054959,90926.0,90925.0,0.26258258]
[1731788603828,0.054959,90926.0,90921.0,0.0303]
[1731788603829,0.09407585,90927.0,90921.0,0.29288258]
[1731788604031,0.09407585,90927.0,90921.0,0.0303]
[1731788604032,0.054961,90922.0,90921.0,0.0303]
[1731788604233,0.054961,90922.0,90921.0,0.08531037]
[1731788604632,0.054961,90922.0,90921.0,0.19529233]
[1731788606429,0.054961,90922.0,90921.0,0.20560302]
[1731788606632,0.0051,90937.0,90924.0,0.05496]
[1731788606633,0.054957,90930.0,90924.0,0.05496]
[1731788606850,0.054957,90930.0,90925.0,0.04091069]
[1731788607041,0.08028,90938.0,90926.0,0.01031069]
[1731788607237,0.054957,90929.0,90927.0,0.01031069]
[1731788607431,0.054957,90929.0,90928.0,0.01031069]
[1731788607941,0.054957,90929.0,90928.0,0.17529878]
[1731788610539,0.08028,90939.0,90928.0,0.17529878]
[1731788610748,0.054954,90935.0,90929.0,0.01031069]
[1731788610943,0.054954,90935.0,90930.0,0.01031069]
[1731788611143,0.13090342,90939.0,90930.0,0.05501037]
[1731788611349,0.18585442,90940.0,90931.0,0.17524221]
[1731788611547,0.054951,90939.0,90932.0,0.01030955]
[1731788611750,0.054951,90939.0,90933.0,0.01030955]
[1731788612051,0.054951,90939.0,90931.0,0.10996637]
[1731788612242,0.054952,90938.0,90934.0,0.10997168]
[1731788612443,0.054952,90938.0,90933.0,0.05501037]
[1731788612637,0.054953,90937.0,90934.0,0.10996744]
[1731788612837,0.054953,90937.0,90934.0,0.16497781]
[1731788613240,0.054953,90937.0,90934.0,0.05501037]
[1731788613441,0.415749,90942.0,90938.0,0.054951]
[1731788613642,0.415749,90942.0,90939.0,0.04030944]
[1731788613844,0.415749,90942.0,90940.0,0.01030944]
[1731788614151,0.415749,90942.0,90940.0,0.10996805]
[1731788616150,0.5180317,90941.0,90936.0,0.03577652]
[1731788616446,0.054965,90916.0,90914.0,0.00056]
[1731788616649,0.054969,90910.0,90896.0,0.08802565]
[1731788617456,0.054969,90910.0,90896.0,0.0322]
[1731788618249,0.054969,90910.0,90898.0,0.3608]
[1731788618841,0.054969,90910.0,90909.0,0.05666023]
[1731788621656,0.054969,90910.0,90909.0,0.16500987]
[1731788622762,0.054974,90901.0,90898.0,0.3608]
[1731788623051,0.054974,90901.0,90900.0,0.0582806]
[1731788623443,0.054974,90901.0,90900.0,0.1682801]
[1731788624742,0.054974,90901.0,90900.0,0.22329047]
[1731788625145,0.054974,90901.0,90900.0,0.21297715]
[1731788631144,0.054974,90901.0,90900.0,0.22329124]
[1731788631747,0.054974,90901.0,90900.0,0.21297715]
[1731788632154,0.054974,90901.0,90900.0,0.10297765]
[1731788640749,0.136294,90901.0,90900.0,0.10297765]
[1731788642557,0.23036985,90901.0,90900.0,0.10297765]
[1731788643764,0.23132985,90901.0,90900.0,0.10297765]
[1731788643954,0.14904985,90901.0,90900.0,0.10297765]
[1731788644161,0.23132985,90901.0,90900.0,0.10297765]
[1731788645358,0.23132985,90901.0,90900.0,0.04717565]
[1731788645359,0.56136985,90901.0,90900.0,0.04717565]
[1731788645667,0.054987,90880.0,90879.0,0.0311]
[1731788645867,0.498067,90880.0,90879.0,0.04141635]
[1731788646166,0.054989,90877.0,90876.0,0.11001039]
[1731788646355,0.054999,90860.0,90859.0,0.46022167]
[1731788646558,0.23135485,90860.0,90859.0,0.46022167]
[1731788646861,0.56155485,90860.0,90859.0,0.46022167]
[1731788647064,0.23135485,90860.0,90859.0,0.46022167]
[1731788647461,0.23135485,90860.0,90859.0,0.46366151]
[1731788647864,0.61628394,90860.0,90859.0,0.45572488]
[1731788648054,0.71035979,90860.0,90859.0,0.05501037]
[1731788648279,0.055002,90855.0,90854.0,0.46632658]
[1731788648470,0.055004,90852.0,90846.0,0.59072588]
[1731788648764,0.055004,90852.0,90827.0,0.50031915]
[1731788648765,0.055009,90844.0,90842.0,0.00056]
[1731788648986,0.055009,90844.0,90827.0,6.507e-05]